bitfinex-derivatives/quotes_BNBF0:USTF0_20250715
["timestamp","ask_amount","ask_price","bid_price","bid_amount"]
[1752575713190,1.1038573,678.89,678.2,0.99133905]
[1752575713387,1.1038573,678.88,678.2,0.99133905]
[1752575713591,1.1038573,678.87,678.2,0.99133905]
[1752575713791,1.1038573,678.86,678.2,0.99133905]
[1752575713990,1.1038573,678.85,678.2,0.99133905]
[1752575714193,1.1038573,678.84,678.2,0.99133905]
[1752575714487,1.1038573,678.83,678.21,0.99133905]
[1752575714687,1.1038573,678.82,678.21,0.99133905]
[1752575714888,1.1038573,678.81,678.21,0.99133905]
[1752575715087,1.1038573,678.8,678.21,0.99133905]
[1752575715287,0.9933406,678.87,678.23,0.99133905]
[1752575715487,2.098293,678.86,678.22,0.99133905]
[1752575715692,1.1049524,678.85,678.22,0.99133905]
[1752575716486,0.9933406,678.86,678.22,0.99133905]
[1752575716691,1.1051039,678.85,678.22,0.99133905]
[1752575716893,0.9933406,678.84,678.2,0.99133905]
[1752575717188,1.1051039,678.83,678.2,0.99133905]
[1752575717388,1.1051039,678.83,678.21,0.99133905]
[1752575718389,2.0984445,678.83,678.21,0.99133905]
[1752575718589,1.1051039,678.82,678.21,0.99133905]
[1752575718990,0.9933406,678.78,678.24,0.99133905]
[1752575719193,1.1051039,678.77,678.24,0.99133905]
[1752575719391,1.1051039,678.77,678.25,0.99133905]
[1752575720396,2.0984445,678.77,678.25,0.99133905]
[1752575720596,1.1051039,678.76,678.25,0.99133905]
[1752575720796,1.1051039,678.75,678.25,0.99133905]
[1752575721002,0.9933406,678.77,678.25,0.99133905]
[1752575721191,1.1055657,678.76,678.25,0.99133905]
[1752575721495,1.1055657,678.76,678.26,0.99133905]
[1752575722292,2.0989063,678.76,678.26,0.99133905]
[1752575722497,1.1055657,678.75,678.26,0.99133905]
[1752575722793,1.1055657,678.74,678.27,0.99133905]
[1752575722993,0.9933406,678.76,678.26,0.99133905]
[1752575723192,0.9933406,678.76,678.14,1.3214672]
[1752575723193,1.1058487,678.75,678.27,0.99133905]
[1752575723394,2.0991893,678.75,678.27,0.99133905]
[1752575723598,1.1058487,678.74,678.27,0.99133905]
[1752575724194,2.0991893,678.74,678.28,0.99133905]
[1752575724394,1.1058487,678.73,678.28,0.99133905]
[1752575724601,2.0991893,678.73,678.29,0.99133905]
[1752575724796,1.1058487,678.72,678.29,0.99133905]
[1752575725000,0.9933406,678.73,678.29,0.99133905]
[1752575725196,1.1061772,678.72,678.29,0.99133905]
[1752575725501,0.9933406,678.72,678.3,0.99133905]
[1752575725699,0.9933406,678.72,677.93,0.25646695]
[1752575725700,0.9933406,678.75,678.28,0.99133905]
[1752575725898,1.1063654,678.74,678.28,0.99133905]
[1752575726301,2.099706,678.74,678.28,0.99133905]
[1752575726601,1.1063654,678.73,678.29,0.99133905]
[1752575728708,1.1070952,678.72,678.29,0.99133905]
[1752575729007,1.1070952,678.71,678.29,0.99133905]
[1752575729202,0.9933406,678.73,678.29,0.99133905]
[1752575729403,1.107106,678.72,678.29,0.99133905]
[1752575730017,1.107106,678.72,678.28,0.99133905]
[1752575730306,1.107106,678.71,678.29,0.99133905]
[1752575730508,0.9933406,678.75,678.29,0.99133905]
[1752575730707,1.1071408,678.74,678.29,0.99133905]
[1752575734411,0.9933406,678.75,678.29,0.99133905]
[1752575734611,1.1072738,678.74,678.29,0.99133905]
[1752575735506,1.1072738,678.74,678.15,1.3214672]
[1752575735507,0.9933406,678.73,678.3,0.99133905]
[1752575735710,1.1072738,678.72,678.3,0.99133905]
[1752575736107,1.1072738,678.72,678.26,0.99133905]
[1752575736312,0.9933406,678.78,678.26,0.99133905]
[1752575736510,1.1072824,678.77,678.26,0.99133905]
[1752575739911,2.100623,678.77,678.27,0.99133905]
[1752575740112,1.1072824,678.76,678.27,0.99133905]
[1752575740307,1.1072824,678.76,678.26,0.99133905]
[1752575740509,1.1072824,678.76,678.27,0.99133905]
[1752575740812,1.1072824,678.76,678.26,0.99133905]
[1752575741313,1.1072824,678.76,678.27,0.99133905]
[1752575741911,1.1072824,678.76,678.26,0.99133905]
[1752575742611,0.9933406,678.75,678.24,0.99133905]
[1752575742814,1.1072824,678.74,678.24,0.99133905]
[1752575743517,0.9933406,678.75,678.24,0.99133905]
[1752575743717,1.1072899,678.74,678.24,0.99133905]
[1752575744817,0.9933406,678.71,678.2,0.99133905]
[1752575745416,0.9933406,678.72,678.2,0.99133905]
[1752575745616,1.1078228,678.71,678.2,0.99133905]
[1752575745914,0.9933406,678.7,678.21,0.99133905]
[1752575746117,0.9933406,678.67,678.23,0.99133905]
[1752575746314,0.9933406,678.68,678.22,0.99133905]
[1752575746617,1.1078544,678.67,678.22,0.99133905]
[1752575747014,2.101195,678.67,678.23,0.99133905]
[1752575747313,0.9933406,678.67,678.23,0.99133905]
[1752575747617,0.9933406,678.68,678.22,0.99133905]
[1752575747816,0.9933406,678.69,678.22,0.99133905]
[1752575748018,1.1078459,678.68,678.22,0.99133905]
[1752575750423,1.1078459,678.68,678.21,0.99133905]
[1752575750622,2.1011865,678.68,678.22,0.99133905]
[1752575750918,1.1078459,678.67,678.22,0.99133905]
[1752575751522,1.1078459,678.66,678.22,0.99133905]
[1752575751720,1.1078459,678.65,678.22,0.99133905]
[1752575751923,1.1078459,678.64,678.22,0.99133905]
[1752575752120,1.1078459,678.63,678.22,0.99133905]
[1752575752321,0.9933406,678.69,678.22,0.99133905]
[1752575752520,1.10792,678.68,678.22,0.99133905]
[1752575752724,1.10792,678.67,678.22,0.99133905]
[1752575753024,1.10792,678.66,678.22,0.99133905]
[1752575753223,1.10792,678.65,678.22,0.99133905]
[1752575753420,1.10792,678.64,678.22,0.99133905]
[1752575753618,1.10792,678.63,678.22,0.99133905]
[1752575753920,0.9933406,678.68,678.22,0.99133905]
[1752575754120,1.1079493,678.67,678.22,0.99133905]
[1752575756224,1.1080479,678.66,678.22,0.99133905]
[1752575756421,1.1080479,678.65,678.22,0.99133905]
[1752575756624,1.1080479,678.64,678.22,0.99133905]
[1752575756826,1.1080479,678.63,678.22,0.99133905]
[1752575757020,0.9933406,678.68,678.22,0.99133905]
[1752575757323,1.1080399,678.67,678.21,0.99133905]
[1752575757518,0.9933406,678.7,678.21,0.99133905]
[1752575759124,0.9933406,678.7,678.22,0.99133905]
[1752575759722,0.9933406,678.77,678.18,0.99133905]
[1752575760328,1.1080644,678.76,678.18,0.99133905]
[1752575760526,2.101405,678.76,678.17,0.99133905]
[1752575760726,1.1080644,678.75,678.17,0.99133905]
[1752575761525,1.1080644,678.75,678.18,0.99133905]
[1752575761829,1.1080644,678.74,678.18,0.99133905]
[1752575762029,1.1080644,678.73,678.18,0.99133905]
[1752575762230,1.1080644,678.72,678.2,0.99133905]
[1752575762527,1.1080644,678.71,678.2,0.99133905]
[1752575762831,1.1080644,678.7,678.2,0.99133905]
[1752575763127,0.9933406,678.79,678.2,0.99133905]
[1752575763328,1.1080802,678.78,678.2,0.99133905]
[1752575764432,1.1080802,678.78,678.17,0.99133905]
[1752575764633,1.1080802,678.77,678.17,0.99133905]
[1752575764929,1.1080802,678.76,678.17,0.99133905]
[1752575765128,1.1080802,678.75,678.17,0.99133905]
[1752575765332,1.1080802,678.74,678.17,0.99133905]
[1752575765533,0.9933406,678.86,678.19,0.99133905]
[1752575765732,1.1080609,678.85,678.2,0.99133905]
[1752575766429,1.1080609,678.85,678.19,0.99133905]
[1752575767333,1.1080609,678.85,678.22,0.99133905]
[1752575767631,1.1080609,678.84,678.22,0.99133905]
[1752575767829,1.1080609,678.83,678.22,0.99133905]
[1752575768029,1.1080609,678.82,678.22,0.99133905]
[1752575768229,1.1080609,678.81,678.22,0.99133905]
[1752575768432,1.1080609,678.8,678.23,0.99133905]
[1752575768632,1.1080609,678.79,678.23,0.99133905]
[1752575768832,1.1080609,678.78,678.22,0.99133905]
[1752575769034,0.9933406,678.89,678.22,0.99133905]
[1752575769231,1.10800114,678.88,678.22,0.99133905]
[1752575769431,1.10800114,678.88,678.23,0.99133905]
[1752575769630,2.10134174,678.87,678.24,0.99133905]
[1752575769833,1.10800114,678.86,678.24,0.99133905]
[1752575771435,2.10134174,678.86,678.24,0.99133905]
[1752575771735,1.10800114,678.85,678.24,0.99133905]
[1752575771936,1.10800114,678.84,678.24,0.99133905]
[1752575772136,0.9933406,678.87,678.24,0.99133905]
[1752575772334,1.10796332,678.86,678.24,0.99133905]
[1752575773838,0.9933406,678.81,678.27,0.99133905]
[1752575774037,1.10796332,678.8,678.27,0.99133905]
[1752575774337,1.10796332,678.8,678.28,0.99133905]
[1752575775138,1.10796332,678.8,678.27,0.99133905]
[1752575776433,2.10130392,678.8,678.28,0.99133905]
[1752575776736,1.10796332,678.79,678.28,0.99133905]
[1752575777135,1.10796332,678.78,678.28,0.99133905]
[1752575777338,1.10796332,678.77,678.28,0.99133905]
[1752575777536,1.10796332,678.76,678.28,0.99133905]
[1752575777734,1.10796332,678.75,678.28,0.99133905]
[1752575778035,1.10796332,678.74,678.28,0.99133905]
[1752575778238,0.9933406,678.81,678.28,0.99133905]
[1752575778439,1.1074152,678.8,678.27,0.99133905]
[1752575778736,1.1074152,678.8,678.28,0.99133905]
[1752575778935,1.1074152,678.8,678.27,0.99133905]
[1752575779540,2.1007558,678.8,678.28,0.99133905]
[1752575779840,1.1074152,678.79,678.28,0.99133905]
[1752575780340,0.9933406,678.93,678.19,0.99133905]
[1752575780537,1.107387,678.92,678.19,0.99133905]
[1752575780937,0.9933406,678.93,678.19,0.99133905]
[1752575781136,1.107387,678.92,678.19,0.99133905]
[1752575781536,1.107387,678.91,678.19,0.99133905]
[1752575781737,1.1073738,678.9,678.19,0.99133905]
[1752575781940,1.1073738,678.89,678.19,0.99133905]
[1752575782141,1.1073738,678.88,678.19,0.99133905]
[1752575782441,1.1073738,678.87,678.19,0.99033438]
[1752575782638,1.1073738,678.86,678.19,0.99033438]
[1752575782839,1.1073738,678.85,678.19,0.99033438]
[1752575783041,1.1073738,678.84,678.19,0.99033438]
[1752575783341,1.1073738,678.83,678.19,0.99033438]
[1752575783542,1.1073738,678.82,678.19,0.99033438]
[1752575783839,1.1073738,678.81,678.19,0.99033438]
[1752575784039,1.1073738,678.8,678.19,0.99033438]
[1752575784338,0.99333931,678.93,678.19,0.99033438]
[1752575784539,1.1073365,678.92,678.19,0.99033438]
[1752575788446,1.1073365,678.91,678.19,0.99033438]
[1752575788642,1.1073365,678.9,678.19,0.99033438]
[1752575788845,1.1073365,678.89,678.19,0.99033438]
[1752575789043,1.1073365,678.88,678.19,0.99033438]
[1752575789343,1.1073365,678.87,678.19,0.99033438]
[1752575789547,1.1073365,678.86,678.19,0.99033438]
[1752575789747,1.1073365,678.85,678.19,0.99033438]
[1752575789948,1.1073365,678.84,678.19,0.99033438]
[1752575790149,0.99333931,678.86,678.24,0.99033438]
[1752575790347,1.1072811,678.85,678.24,0.99033438]
[1752575790947,1.107271,678.84,678.24,0.99033438]
[1752575791148,1.107271,678.83,678.25,0.99033438]
[1752575793549,1.107271,678.83,678.18,0.99033438]
[1752575793749,1.107271,678.82,678.18,0.99033438]
[1752575793948,1.107271,678.81,678.19,0.99033438]
[1752575794246,0.99333931,678.94,678.19,0.99033438]
[1752575794449,1.1072337,678.93,678.18,0.99033438]
[1752575794648,1.1072337,678.93,678.19,0.99033438]
[1752575795446,1.1072337,678.93,678.18,0.99033438]
[1752575796049,0.99333931,678.91,678.2,0.99033438]
[1752575796251,1.1072337,678.9,678.21,0.99033438]
[1752575796446,1.1072337,678.9,678.2,0.99033438]
[1752575797253,1.1072337,678.9,678.17,0.99033438]
[1752575797552,1.1072337,678.89,678.17,0.99033438]
[1752575797751,1.1072337,678.88,678.17,0.99033438]
[1752575798047,1.1072337,678.87,678.17,0.99033438]
[1752575798348,1.1072337,678.86,678.17,0.99033438]
[1752575798552,1.1072337,678.85,678.17,0.99033438]
[1752575798852,1.1072337,678.84,678.17,0.99033438]
[1752575799151,1.10720085,678.83,678.17,0.99033438]
[1752575799352,1.10720085,678.82,678.17,0.99033438]
[1752575799647,0.99333931,678.94,678.19,0.99033438]
[1752575799854,1.1070522,678.93,678.19,0.99033438]
[1752575800052,1.1070522,678.93,678.24,0.99033438]
[1752575800354,1.1070522,678.92,678.29,0.99033438]
[1752575800547,0.99333931,679.04,678.29,0.99033438]
[1752575800749,1.10684061,679.03,678.29,0.99033438]
[1752575801655,1.10684061,679.02,678.29,0.99033438]
[1752575801852,1.10684061,679.01,678.31,0.99033438]
[1752575802357,0.99333931,679.02,678.31,0.99033438]
[1752575802554,0.99333931,679.03,678.3,0.99033438]
[1752575803154,0.99333931,679.05,678.29,0.99033438]
[1752575803354,0.99333931,679.07,678.27,0.99033438]
[1752575805459,0.99333931,679.08,678.26,0.99033438]
[1752575806164,0.99333931,679.11,678.24,0.99033438]
[1752575806559,0.99333931,679.1,678.25,0.99033438]
[1752575806961,0.99333931,679.11,678.25,0.99033438]
[1752575808965,0.99333931,679.11,678.26,0.25633754]
[1752575809266,0.25633754,679.23,678.37,0.99033438]
[1752575809466,0.25633754,679.23,678.4,0.99033438]
[1752575810569,0.25633754,679.23,678.39,0.99033438]
[1752575811370,1.3591665,679.23,678.38,0.99033438]
[1752575811670,1.10282896,679.22,678.38,0.99033438]
[1752575811867,1.10282896,679.21,678.38,0.99033438]
[1752575812072,1.10282896,679.2,678.38,0.99033438]
[1752575812370,1.10282896,679.19,678.37,0.99033438]
[1752575812666,1.10282896,679.18,678.37,0.99033438]
[1752575812971,0.25633754,679.23,678.37,0.99033438]
[1752575813170,0.25633754,679.23,678.39,0.99033438]
[1752575813365,0.25633754,679.23,678.37,0.99033438]
[1752575814468,0.25633754,679.23,678.36,0.99033438]
[1752575815869,1.35847767,679.23,678.36,0.99033438]
[1752575816074,1.10214013,679.22,678.36,0.99033438]
[1752575816370,1.10214013,679.21,678.35,0.99033438]
[1752575816572,0.25633754,679.23,678.35,0.99033438]
[1752575817470,0.25633754,679.23,678.34,0.99033438]
[1752575818672,0.25633754,679.23,678.4,0.99033438]
[1752575819478,0.25633754,679.23,678.39,0.99033438]
[1752575820376,0.25633754,679.23,678.37,0.99033438]
[1752575821780,0.25633754,679.23,678.36,0.99033438]
[1752575822176,0.25633754,679.23,678.39,0.99033438]
[1752575822377,0.25633754,679.23,678.38,0.99033438]
[1752575822683,1.35748513,679.23,678.4,0.99033438]
[1752575822881,1.10114759,679.22,678.4,0.99033438]
[1752575823082,1.10114759,679.21,678.41,0.99033438]
[1752575823282,1.10114759,679.2,678.43,0.99033438]
[1752575823482,1.10114759,679.19,678.44,0.99033438]
[1752575823683,1.10114759,679.18,678.44,0.99033438]
[1752575823880,1.10114759,679.17,678.44,0.99033438]
[1752575824083,1.10114759,679.16,678.44,0.99033438]
[1752575824281,0.25633754,679.23,678.44,0.99033438]
[1752575824282,1.10114759,679.15,678.44,0.99033438]
[1752575824480,1.10114759,679.14,678.44,0.99033438]
[1752575824686,0.25633754,679.23,678.44,0.99033438]
[1752575825490,0.25633754,679.23,678.43,0.99033438]
[1752575825980,1.35708814,679.23,678.44,0.99033438]
[1752575826181,1.1007506,679.22,678.44,0.99033438]
[1752575826382,1.1007506,679.21,678.43,0.99033438]
[1752575826686,1.1007506,679.2,678.45,0.99033438]
[1752575826886,1.1007506,679.19,678.45,0.99033438]
[1752575827182,1.1007506,679.18,678.45,0.99033438]
[1752575827386,1.1007506,679.17,678.45,0.99033438]
[1752575827587,1.24967685,679.23,678.45,0.99033438]
[1752575827885,1.10059355,679.22,678.45,0.99033438]
[1752575828782,1.10059355,679.22,678.44,0.99033438]
[1752575829186,1.10059355,679.22,678.43,0.99033438]
[1752575829486,1.10059355,679.21,678.39,0.99033438]
[1752575830180,1.10059355,679.2,678.39,0.99033438]
[1752575830385,1.10059355,679.19,678.39,0.99033438]
[1752575830586,1.10059355,679.18,678.37,0.99033438]
[1752575830780,1.10059355,679.17,678.37,0.99033438]
[1752575830983,1.10059355,679.16,678.37,0.99033438]
[1752575831183,1.10059355,679.15,678.37,0.99033438]
[1752575831383,1.10059355,679.14,678.37,0.99033438]
[1752575831687,1.10059355,679.13,678.37,0.99033438]
[1752575831887,1.10059355,679.12,678.37,0.99033438]
[1752575832088,1.10059355,679.11,678.37,0.99033438]
[1752575832384,1.10059355,679.1,678.37,0.99033438]
[1752575832584,0.99333931,679.22,678.37,0.99033438]
[1752575832783,1.1005549,679.21,678.37,0.99033438]
[1752575832983,1.1005549,679.2,678.37,0.99033438]
[1752575833286,1.1005549,679.19,678.37,0.99033438]
[1752575833487,0.99333931,679.15,678.3,0.99033438]
[1752575833682,1.1005549,679.14,678.3,0.99033438]
[1752575836486,1.1005549,679.14,678.31,0.99033438]
[1752575836684,0.99333931,679.09,678.26,1.24667192]
[1752575836886,1.10082977,679.08,678.26,1.24667192]
[1752575837291,1.10082977,679.08,678.27,0.99033438]
[1752575839485,2.09416908,679.08,678.27,0.99033438]
[1752575839692,1.10082977,679.07,678.27,0.99033438]
[1752575840389,1.10082977,679.07,678.26,0.25633754]
[1752575840390,1.10082977,679.07,678.28,0.99033438]
[1752575843387,2.09416908,679.07,678.29,0.99033438]
[1752575843699,1.10082977,679.06,678.29,0.99033438]
[1752575843993,1.10082977,679.05,678.29,0.99033438]
[1752575844291,1.10082977,679.04,678.29,0.99033438]
[1752575844487,1.10082977,679.03,678.29,0.99033438]
[1752575844688,1.10082977,679.02,678.29,0.99033438]
[1752575844888,1.10082977,679.01,678.29,0.99033438]
[1752575845092,1.10082977,679.0,678.29,0.99033438]
[1752575845292,1.10082977,678.99,678.29,0.99033438]
[1752575845592,1.10082977,678.98,678.29,0.99033438]
[1752575845992,0.99333931,679.08,678.29,0.99033438]
[1752575846187,1.10168404,679.07,678.29,0.99033438]
[1752575846594,0.99333931,679.05,678.31,0.99033438]
[1752575846792,1.10168404,679.04,678.31,0.99033438]
[1752575848496,1.10168404,679.04,678.26,0.25633754]
[1752575848497,2.09502335,679.04,678.32,0.99033438]
[1752575848695,1.10168404,679.03,678.32,0.99033438]
[1752575850398,1.10168404,679.03,678.33,0.99033438]
[1752575851498,2.09502335,679.03,678.33,0.99033438]
[1752575851699,1.10168404,679.02,678.33,0.99033438]
[1752575851893,1.10168404,679.01,678.33,0.99033438]
[1752575852094,1.10168404,679.0,678.33,0.99033438]
[1752575852296,1.10168404,678.99,678.33,0.99033438]
[1752575852498,1.10168404,678.98,678.34,0.99033438]
[1752575852801,1.10168404,678.97,678.34,0.99033438]
[1752575852995,1.10168404,678.96,678.34,0.99033438]
[1752575853198,0.99333931,679.03,678.34,0.99033438]
[1752575853395,1.1026701,679.02,678.34,0.99033438]
[1752575854602,2.09600941,679.02,678.35,0.99033438]
[1752575854799,1.1026701,679.01,678.35,0.99033438]
[1752575855004,1.1029791,679.0,678.34,0.99033438]
[1752575855200,1.1029791,678.99,678.34,0.99033438]
[1752575855409,1.1029791,678.98,678.36,0.99033438]
[1752575855603,1.1031651,678.97,678.36,0.99033438]
[1752575855803,1.1031651,678.96,678.36,0.99033438]
[1752575856003,0.99333931,679.01,678.36,0.99033438]
[1752575856205,1.1031651,679.0,678.36,0.99033438]
[1752575856505,1.1031651,679.0,678.37,0.99033438]
[1752575857408,2.09650441,679.0,678.37,0.99033438]
[1752575857610,1.1031651,678.99,678.37,0.99033438]
[1752575858406,1.1031651,678.99,678.38,0.99033438]
[1752575859614,2.09650441,678.99,678.39,0.99033438]
[1752575859812,1.1031651,678.98,678.39,0.99033438]
[1752575860014,1.1031651,678.97,678.39,0.99033438]
[1752575860212,1.1031651,678.96,678.39,0.99033438]
[1752575860419,1.1031651,678.95,678.39,0.99033438]
[1752575860609,1.1031651,678.94,678.39,0.99033438]
[1752575860813,0.99333931,678.99,678.39,0.99033438]
[1752575861013,1.10410788,678.98,678.39,0.99033438]
[1752575861813,2.09744719,678.98,678.39,0.99033438]
[1752575862014,1.10410788,678.97,678.39,0.99033438]
[1752575862814,1.10410788,678.96,678.4,0.99033438]
[1752575863012,0.99333931,678.99,678.4,0.99033438]
[1752575863220,0.99333931,679.01,678.38,0.99033438]
[1752575864813,0.99333931,679.01,678.26,0.25633754]
[1752575864814,0.99333931,679.0,678.39,0.99033438]
[1752575867318,0.99333931,679.05,678.36,0.99033438]
[1752575868319,0.99333931,679.05,678.37,0.99033438]
[1752575868516,0.99333931,679.04,678.37,0.99033438]
[1752575872016,0.99333931,679.06,678.39,0.99033438]
[1752575873517,0.2563196,679.31,678.45,0.99033438]
[1752575873518,0.99333931,679.12,678.45,0.99033438]
[1752575876422,0.99333931,679.11,678.45,0.99033438]
[1752575876721,0.99333931,679.12,678.45,0.99033438]
[1752575876924,1.1040071,679.11,678.45,0.99033438]
[1752575877221,1.1040071,679.11,678.3,1.3214672]
[1752575877425,1.1040071,679.1,678.26,0.25633754]
[1752575877625,1.1040071,679.09,678.26,0.25633754]
[1752575877922,0.2563196,679.31,678.26,0.25633754]
[1752575878126,0.99151735,679.08,678.48,0.98781387]
[1752575879322,0.99151735,679.14,678.54,0.98781387]
[1752575879626,0.99151735,679.14,678.41,1.3170851]
[1752575879627,0.99151735,679.14,678.55,0.98781387]
[1752575880125,0.99151735,679.14,678.54,0.98781387]
[1752575881325,0.99151735,679.15,678.54,0.98781387]
[1752575881524,0.99151735,679.14,678.54,0.98781387]
[1752575883421,0.99151735,679.14,678.55,0.98781387]
[1752575884423,2.09557555,679.14,678.55,0.98781387]
[1752575884627,1.1040582,679.13,678.54,0.98781387]
[1752575884824,1.1040582,679.12,678.54,0.98781387]
[1752575885127,1.1040582,679.11,678.54,0.98781387]
[1752575885428,1.1040582,679.1,678.54,0.98781387]
[1752575885625,0.99151735,679.15,678.54,0.98781387]
[1752575885824,0.99151735,679.21,678.5,0.98781387]
[1752575887726,0.99151735,679.2,678.51,0.98781387]
[1752575888425,0.99151735,679.21,678.5,0.98781387]
[1752575889127,0.99151735,679.22,678.5,0.98781387]
[1752575889327,0.99151735,679.21,678.5,0.98781387]
[1752575890229,0.99151735,679.22,678.5,0.98781387]
[1752575892229,0.99151735,679.22,678.49,0.98781387]
[1752575894134,0.99151735,679.23,678.49,0.98781387]
[1752575895632,0.99151735,679.2,678.5,0.98781387]
[1752575896135,0.99151735,679.21,678.5,0.98781387]
[1752575898339,0.99151735,679.19,678.51,0.98781387]
[1752575901435,2.09523175,679.19,678.51,0.98781387]
[1752575901637,1.10376106,679.18,678.51,0.98781387]
[1752575901841,1.10376106,679.17,678.51,0.98781387]
[1752575902041,1.10376106,679.16,678.51,0.98781387]
[1752575902241,1.10377983,679.15,678.51,0.98781387]
[1752575902440,1.10377983,679.14,678.51,0.98781387]
[1752575902641,1.10377983,679.13,678.51,0.98781387]
[1752575902841,0.99151735,679.19,678.51,0.98781387]
[1752575902842,1.10377983,679.12,678.51,0.98781387]
[1752575903043,0.99151735,679.19,678.51,0.98781387]
[1752575903443,0.99151735,679.17,678.52,0.98781387]
[1752575904346,0.99151735,679.15,678.54,0.98781387]
[1752575906143,0.99151735,679.14,678.54,0.98781387]
[1752575907746,0.99151735,679.13,678.55,0.98781387]
[1752575911146,0.99151735,679.11,678.57,0.98781387]
[1752575913855,2.09552475,679.11,678.57,0.98781387]
[1752575914053,1.1040074,679.1,678.57,0.98781387]
[1752575914254,1.1040074,679.09,678.57,0.98781387]
[1752575914553,0.2563196,679.31,678.57,0.98781387]
[1752575914554,1.1040074,679.08,678.57,0.98781387]
[1752575914852,1.1040074,679.07,678.57,0.98781387]
[1752575915049,1.1040074,679.06,678.57,0.98781387]
[1752575915249,0.99151735,679.11,678.57,0.98781387]
[1752575918353,0.99151735,679.1,678.57,0.98781387]
[1752575918558,0.99151735,679.12,678.56,0.98781387]
[1752575919157,0.99155044,679.12,678.57,0.98775103]
[1752575920063,0.99155044,679.11,678.57,0.98775103]
[1752575920359,2.09652204,679.11,678.57,0.98775103]
[1752575920557,1.1049716,679.1,678.57,0.98775103]
[1752575920758,1.1049716,679.09,678.57,0.98775103]
[1752575920959,1.1049716,679.08,678.57,0.98775103]
[1752575921160,1.1049716,679.07,678.57,0.98775103]
[1752575921360,1.1049716,679.06,678.57,0.98775103]
[1752575921557,1.1049716,679.05,678.57,0.98775103]
[1752575921760,1.1049716,679.04,678.57,0.98775103]
[1752575921963,1.1049716,679.03,678.57,0.98775103]
[1752575922163,1.1061472,679.02,678.57,0.98775103]
[1752575922364,0.99155044,679.11,678.58,0.98775103]
[1752575922661,0.99155044,679.11,678.57,0.98775103]
[1752575922662,1.106156,679.1,678.57,0.98775103]
[1752575922863,1.106156,679.09,678.57,0.98775103]
[1752575923060,1.106156,679.08,678.57,0.98775103]
[1752575923260,1.106156,679.07,678.54,0.98775103]
[1752575923459,1.106156,679.06,678.55,0.98775103]
[1752575923662,1.106156,679.05,678.55,0.98775103]
[1752575923865,1.106156,679.04,678.55,0.98775103]
[1752575924166,1.106156,679.03,678.55,0.98775103]
[1752575924361,0.99155044,679.15,678.55,0.98775103]
[1752575924566,1.1065518,679.14,678.55,0.98775103]
[1752575924866,1.1065518,679.13,678.55,0.98775103]
[1752575925059,1.1065518,679.12,678.55,0.98775103]
[1752575925261,1.1065518,679.11,678.55,0.98775103]
[1752575925461,1.1065518,679.1,678.55,0.98775103]
[1752575925760,1.1065518,679.09,678.55,0.98775103]
[1752575925958,0.99155044,679.14,678.55,0.98775103]
[1752575925959,1.1065518,679.08,678.55,0.98775103]
[1752575926160,1.1065518,679.08,678.56,0.98775103]
[1752575926464,0.99155044,679.14,678.56,0.98775103]
[1752575927064,0.99155044,679.15,678.55,0.98775103]
[1752575927263,0.99155044,679.15,678.56,0.98775103]
[1752575927465,1.1072419,679.14,678.56,0.98775103]
[1752575927662,1.1072416,679.13,678.56,0.98775103]
[1752575927861,1.1072416,679.12,678.56,0.98775103]
[1752575928065,1.1072416,679.11,678.55,0.98775103]
[1752575928266,1.1072416,679.1,678.56,0.98775103]
[1752575928466,1.1072416,679.09,678.56,0.98775103]
[1752575928664,1.1072416,679.08,678.56,0.98775103]
[1752575928862,1.1072416,679.07,678.56,0.98775103]
[1752575929066,1.1072416,679.06,678.56,0.98775103]
[1752575929266,1.1072416,679.05,678.57,0.98775103]
[1752575929465,1.1072416,679.04,678.57,0.98775103]
[1752575929665,1.1072416,679.03,678.57,0.98775103]
[1752575929963,1.1072416,679.02,678.57,0.98775103]
[1752575930163,1.1072416,679.01,678.57,0.98775103]
[1752575930364,0.99155044,679.13,678.57,0.98775103]
[1752575930563,1.10724042,679.12,678.57,0.98775103]
[1752575930763,1.10724042,679.11,678.57,0.98775103]
[1752575931067,1.10724042,679.1,678.57,0.98775103]
[1752575931265,1.10724042,679.09,678.57,0.98775103]
[1752575931461,1.10724042,679.08,678.58,0.98775103]
[1752575931664,1.10724042,679.07,678.58,0.98775103]
[1752575931864,1.10724042,679.06,678.58,0.98775103]
[1752575932064,1.10724042,679.05,678.58,0.98775103]
[1752575932264,1.10724042,679.04,678.58,0.98775103]
[1752575932471,1.10724042,679.03,678.58,0.98775103]
[1752575932667,1.10724042,679.02,678.26,0.25633754]
[1752575932864,1.10724042,679.01,678.26,0.25633754]
[1752575933065,1.10724079,679.0,678.26,0.25633754]
[1752575933269,0.2563196,679.31,678.26,0.25633754]
[1752575937966,0.2563196,679.31,678.26,0.25633754]
[1752575972899,0.99331434,679.02,678.56,0.98943494]
[1752575973197,0.99331434,679.03,678.56,0.98943494]
[1752575975700,0.99331434,679.03,678.55,0.98943494]
[1752575975996,0.99331434,679.03,678.56,0.98943494]
[1752575976199,0.99331434,679.02,678.56,0.98943494]
[1752575977400,0.99331434,679.01,678.56,0.98943494]
[1752575977600,0.99331434,679.02,678.56,0.98943494]
[1752575977897,1.106087,679.01,678.56,0.98943494]
[1752575979202,1.106087,679.01,678.43,1.3192465]